[Event "Turniej 30-lecia Liceum im. Józefa Bema"]
[Site "Warsaw, Poland"]
[Date "????.??.??"]
[Round "7.10"]
[White "Rylski, Tadeusz"]
[Black "Pichurko, Jakub"]
[Result "1-0"]
[TimeControl "0:10:02"]
[WhiteElo "1358"]
[BlackElo "1677"]

1. d4 {[%clk 00:10:02]} {[%emt 00:00:01]} Nf6 {[%clk 00:10:03]} {[%emt
00:00:02]} 2. c4 {[%clk 00:10:02]} {[%emt 00:00:02]} g6 {[%clk 00:10:04]} 3.
Nf3 {[%clk 00:10:03]} {[%emt 00:00:01]} Bg7 {[%clk 00:10:04]} {[%emt 00:00:02]}
4. g3 {[%clk 00:10:03]} {[%emt 00:00:02]} c6 {[%clk 00:10:04]} {[%emt
00:00:02]} 5. Bg2 {[%clk 00:10:03]} {[%emt 00:00:01]} O-O {[%clk 00:10:04]}
{[%emt 00:00:02]} 6. O-O {[%clk 00:10:03]} {[%emt 00:00:02]} d5 {[%clk
00:10:03]} {[%emt 00:00:04]} 7. Nbd2 {[%clk 00:08:49]} {[%emt 00:01:16]} Bf5
{[%clk 00:09:43]} {[%emt 00:00:22]} 8. b3 {[%clk 00:08:16]} {[%emt 00:00:35]}
Ne4 {[%clk 00:09:30]} {[%emt 00:00:15]} 9. Bb2 {[%clk 00:07:58]} {[%emt
00:00:21]} Nd7 {[%clk 00:08:28]} {[%emt 00:01:04]} 10. Nh4 {[%clk 00:07:31]}
{[%emt 00:00:28]} Nxd2 {[%clk 00:07:51]} {[%emt 00:00:39]} 11. Qxd2 {[%clk
00:07:21]} {[%emt 00:00:11]} Be6 {[%clk 00:07:50]} {[%emt 00:00:03]} 12. Rac1
{[%clk 00:07:09]} {[%emt 00:00:14]} Nf6 {[%clk 00:07:42]} {[%emt 00:00:11]} 13.
Rfd1 {[%clk 00:06:34]} {[%emt 00:00:37]} Qd7 {[%clk 00:06:54]} {[%emt
00:00:49]} 14. Ba3 {[%clk 00:06:18]} {[%emt 00:00:20]} Rfe8 {[%clk 00:06:37]}
{[%emt 00:00:18]} 15. Qb4 {[%clk 00:06:05]} {[%emt 00:00:15]} a5 {[%clk
00:06:23]} {[%emt 00:00:17]} 16. Qe1 {[%clk 00:05:31]} {[%emt 00:00:36]} a4
{[%clk 00:06:19]} {[%emt 00:00:06]} 17. Ra1 {[%clk 00:04:33]} {[%emt 00:00:59]}
dxc4 {[%clk 00:05:56]} {[%emt 00:00:25]} 18. bxc4 {[%clk 00:04:01]} {[%emt
00:00:34]} Bxc4 {[%clk 00:05:52]} {[%emt 00:00:06]} 19. Nf3 {[%clk 00:03:53]}
{[%emt 00:00:10]} Bd5 {[%clk 00:05:29]} {[%emt 00:00:25]} 20. Ne5 {[%clk
00:03:51]} {[%emt 00:00:05]} Qf5 {[%clk 00:04:50]} {[%emt 00:00:41]} 21. f3
{[%clk 00:03:07]} {[%emt 00:00:46]} Qe6 {[%clk 00:04:36]} {[%emt 00:00:16]} 22.
Qb4 {[%clk 00:02:44]} {[%emt 00:00:25]} b5 {[%clk 00:04:25]} {[%emt 00:00:13]}
23. Rdc1 {[%clk 00:02:15]} {[%emt 00:00:31]} Rac8 {[%clk 00:04:19]} {[%emt
00:00:08]} 24. e4 {[%clk 00:02:11]} {[%emt 00:00:06]} Bxa2 {[%clk 00:04:08]}
{[%emt 00:00:13]} 25. Rxc6 {[%clk 00:01:07]} {[%emt 00:01:05]} Rxc6 {[%clk
00:04:04]} {[%emt 00:00:07]} 26. Nxc6 {[%clk 00:01:07]} {[%emt 00:00:01]} Qxc6
{[%clk 00:03:49]} {[%emt 00:00:17]} 27. Rxa2 {[%clk 00:01:08]} {[%emt
00:00:02]} Bf8 {[%clk 00:02:50]} {[%emt 00:01:01]} 28. Qc5 {[%clk 00:00:30]}
{[%emt 00:00:40]} Rc8 {[%clk 00:02:43]} {[%emt 00:00:09]} 29. Bh3 {[%clk
00:00:20]} {[%emt 00:00:12]} e6 {[%clk 00:02:43]} {[%emt 00:00:03]} 30. Qxc6
{[%clk 00:00:13]} {[%emt 00:00:09]} Rxc6 {[%clk 00:02:43]} {[%emt 00:00:01]} 31.
Bxf8 {[%clk 00:00:12]} {[%emt 00:00:03]} Kxf8 {[%clk 00:02:44]} {[%emt
00:00:01]} 32. Bf1 {[%emt 00:00:07]} Rc1 {[%clk 00:02:35]} {[%emt 00:00:06]} 33.
Kf2 {[%clk 00:00:12]} {[%emt 00:00:02]} Rb1 {[%clk 00:02:35]} {[%emt 00:00:02]}
34. h4 {[%clk 00:00:06]} {[%emt 00:00:08]} Ke7 {[%clk 00:02:36]} {[%emt
00:00:01]} 35. g4 {[%clk 00:00:06]} {[%emt 00:00:02]} Kd7 {[%clk 00:02:21]}
{[%emt 00:00:17]} 36. Rc2 {[%clk 00:00:07]} b4 {[%clk 00:02:14]} {[%emt
00:00:09]} 37. Bb5+ {[%clk 00:00:08]} Kd8 {[%clk 00:02:11]} {[%emt 00:00:05]}
38. Bxa4 {[%clk 00:00:09]} {[%emt 00:00:02]} Nd7 {[%clk 00:02:05]} {[%emt
00:00:08]} 39. Rc6 {[%clk 00:00:06]} {[%emt 00:00:05]} b3 {[%clk 00:01:58]}
{[%emt 00:00:09]} 40. Rd6 {[%clk 00:00:07]} Kc7 {[%clk 00:01:53]} {[%emt
00:00:07]} 41. Rxd7+ {[%clk 00:00:06]} {[%emt 00:00:03]} Kb6 {[%clk 00:01:48]}
{[%emt 00:00:07]} 42. Rd8 {[%clk 00:00:05]} {[%emt 00:00:04]} Ka5 {[%clk
00:01:48]} {[%emt 00:00:01]} 43. Ra8+ {[%clk 00:00:04]} {[%emt 00:00:03]} Kb4
{[%clk 00:01:49]} 44. Bxb3 {[%clk 00:00:04]} {[%emt 00:00:03]} Kxb3 {[%clk
00:01:46]} {[%emt 00:00:04]} 45. Rb8+ {[%clk 00:00:05]} Kc2 {[%clk 00:01:48]}
46. Rxb1 {[%clk 00:00:06]} {[%emt 00:00:01]} Kxb1 {[%clk 00:01:49]} 47. d5
{[%clk 00:00:07]} exd5 {[%clk 00:01:49]} {[%emt 00:00:01]} 48. exd5 {[%clk
00:00:08]} {[%emt 00:00:01]} Kc2 {[%clk 00:01:48]} {[%emt 00:00:03]} 49. d6
{[%clk 00:00:09]} Kc3 {[%clk 00:01:49]} {[%emt 00:00:01]} 50. d7 {[%clk
00:00:11]} {[%emt 00:00:01]} 1-0